bitfinex-derivatives/quotes_BNBF0:USTF0_20250302
["timestamp","ask_amount","ask_price","bid_price","bid_amount"]
[1740946912570,0.29429157,625.22,623.98,0.916]
[1740946912776,0.31989251,625.21,623.98,0.916]
[1740946913075,0.29429157,625.2,623.98,0.916]
[1740946913276,0.31990274,625.19,623.98,0.916]
[1740946913575,0.29429157,625.18,623.98,0.916]
[1740946913773,0.31991298,625.17,623.98,0.916]
[1740946913973,0.29438816,625.16,623.98,0.916]
[1740946914173,0.61430626,625.16,623.98,0.916]
[1740946914368,0.29438816,625.15,623.98,0.916]
[1740946915369,0.3199181,625.16,623.98,0.916]
[1740946915573,0.29435863,625.15,623.98,0.916]
[1740946918668,0.29433619,625.14,623.98,0.916]
[1740946918874,0.29433619,625.13,623.99,0.612]
[1740946919074,0.29433619,625.15,623.99,0.612]
[1740946919277,0.29433619,625.14,623.99,0.612]
[1740946919479,0.29433619,625.15,623.99,0.612]
[1740946919778,0.3199181,625.16,623.99,0.612]
[1740946919779,0.29433619,625.14,623.99,0.612]
[1740946919978,0.29433619,625.13,623.99,0.612]
[1740946920180,0.29433619,625.15,623.99,0.612]
[1740946920473,0.29433619,625.14,623.99,0.612]
[1740946920679,0.29433619,625.15,624.0,0.32051282]
[1740946920878,0.29433619,625.14,624.0,0.32051282]
[1740946921079,0.29433619,625.15,624.0,0.32051282]
[1740946921279,0.29433619,625.14,624.0,0.32051282]
[1740946921481,0.29433619,625.13,624.0,0.32051282]
[1740946921675,0.29433619,625.12,624.0,0.32051282]
[1740946921874,0.3199181,625.16,624.0,0.32051282]
[1740946922074,0.29430689,625.15,624.0,0.32051282]
[1740946924283,0.29430689,625.15,624.01,0.983]
[1740946924981,0.29430185,625.14,624.01,0.983]
[1740946925281,0.29430185,625.13,624.01,0.983]
[1740946925482,0.29430185,625.12,624.01,0.983]
[1740946925678,0.29430185,625.15,624.01,0.983]
[1740946927683,1.4380471,625.64,624.02,0.32050254]
[1740946927883,0.61389597,625.63,624.02,0.32050254]
[1740946928083,1.4380471,625.58,624.02,0.32050254]
[1740946928282,0.29421821,625.57,624.02,0.32050254]
[1740946928483,0.31971353,625.56,624.02,0.32050254]
[1740946928683,0.29421821,625.55,624.02,0.32050254]
[1740946929586,0.31972375,625.54,624.02,0.32050254]
[1740946929780,0.29421821,625.53,624.02,0.32050254]
[1740946929983,0.61395734,625.52,624.03,0.29261266]
[1740946930184,0.29422336,625.51,624.04,0.32049227]
[1740946930383,0.29422336,625.51,624.05,0.29261266]
[1740946931579,0.31973398,625.52,624.04,0.32049227]
[1740946931780,0.29411407,625.51,624.05,0.29250345]
[1740946933386,0.29411407,625.5,624.05,0.29250345]
[1740946933581,0.29402495,625.61,624.05,0.29250345]
[1740946933781,1.254,625.62,624.05,0.29250345]
[1740946934383,1.254,625.62,624.22,1.19666743]
[1740946934681,1.254,625.62,624.23,0.29250345]
[1740946934882,1.254,625.62,624.22,1.19666743]
[1740946935084,1.254,625.62,624.23,0.29240695]
[1740946935285,1.254,625.62,624.23,0.639]
[1740946935787,0.29407538,625.61,624.23,0.639]
[1740946935983,0.29407538,625.61,624.24,0.29248045]
[1740946936389,0.29407538,625.61,624.26,0.32037932]
[1740946936590,0.29409651,625.6,624.26,0.32037932]
[1740946936891,1.254,625.62,624.26,0.32037932]
[1740946936892,0.29411984,625.59,624.26,0.32037932]
[1740946937090,0.29411984,625.61,624.26,0.32037932]
[1740946937390,0.29411984,625.6,624.26,0.32037932]
[1740946937594,0.29411984,625.61,624.26,0.32037932]
[1740946937785,0.29411984,625.6,624.26,0.32037932]
[1740946937990,0.29411984,625.61,624.26,0.32037932]
[1740946938291,0.29411984,625.6,624.26,0.32037932]
[1740946938492,0.29411984,625.59,624.26,0.32037932]
[1740946938693,0.29411984,625.58,624.26,0.32037932]
[1740946938893,0.29411984,625.57,624.26,0.32037932]
[1740946939093,0.29411984,625.56,624.27,0.942]
[1740946939290,0.29411984,625.61,624.27,0.942]
[1740946939493,0.29411984,625.6,624.27,0.942]
[1740946939691,0.3196982,625.59,624.27,0.942]
[1740946939892,0.29415477,625.58,624.27,0.942]
[1740946940993,0.29415477,625.58,624.28,0.32036906]
[1740946942890,0.29415477,625.58,624.28,1.51636906]
[1740946943089,0.3196982,625.59,624.28,1.51636906]
[1740946943290,1.254,625.62,624.29,0.29202834]
[1740946943594,1.254,625.62,624.3,0.29202834]
[1740946943796,1.254,625.62,624.31,0.29202834]
[1740946943996,1.254,625.62,624.32,0.61237687]
[1740946944197,1.254,625.62,624.33,0.29202834]
[1740946944393,1.254,625.62,624.34,0.29202834]
[1740946944696,1.254,625.62,624.35,0.29202834]
[1740946944889,1.254,625.62,624.36,0.29202834]
[1740946945093,1.254,625.62,624.38,0.32031775]
[1740946945294,1.254,625.62,624.39,0.29202834]
[1740946945495,1.254,625.62,624.41,0.32030236]
[1740946945690,1.254,625.62,624.42,0.29202834]
[1740946945895,1.254,625.62,624.44,0.32028697]
[1740946946095,1.254,625.62,624.45,0.29202834]
[1740946946599,1.254,625.62,624.46,0.29215821]
[1740946946796,1.254,625.62,624.45,0.29215821]
[1740946946994,1.254,625.62,624.46,0.29215821]
[1740946947201,1.254,625.62,624.47,0.29215821]
[1740946947499,1.254,625.62,624.48,0.29215821]
[1740946947700,1.254,625.62,624.49,0.29215821]
[1740946948000,1.254,625.62,624.5,0.29215821]
[1740946948200,1.254,625.62,624.51,0.61240928]
[1740946948399,1.254,625.62,624.52,0.29215821]
[1740946948594,1.254,625.62,624.54,0.32023569]
[1740946948794,1.254,625.62,624.55,0.29215821]
[1740946949401,1.254,625.62,624.57,0.32022031]
[1740946949601,1.254,625.62,624.58,0.29215821]
[1740946949902,1.254,625.62,624.6,0.32020493]
[1740946950200,1.254,625.62,624.61,0.29215821]
[1740946950702,1.254,625.62,624.63,0.32018955]
[1740946950901,1.254,625.62,624.64,0.29215821]
[1740946951098,1.254,625.62,624.66,0.32017417]
[1740946951297,1.254,625.62,624.67,0.29215821]
[1740946952703,1.254,625.62,624.69,0.32015879]
[1740946952902,1.254,625.62,624.7,0.29215821]
[1740946953102,1.254,625.62,624.72,0.32014342]
[1740946953403,1.254,625.62,624.73,0.29217181]
[1740946954201,1.254,625.62,624.75,0.32012805]
[1740946954394,1.254,625.62,624.76,0.29217181]
[1740946955795,1.254,625.62,624.77,0.3201178]
[1740946955996,1.254,625.62,624.78,0.29217181]
[1740946956200,1.254,625.62,624.79,0.32010755]
[1740946957303,1.254,625.62,624.8,0.29224201]
[1740946957705,1.254,625.62,624.81,0.3200973]
[1740946958299,1.4380471,627.98,624.81,0.3200973]
[1740946958606,0.31855757,627.83,624.81,0.3200973]
[1740946958805,0.29385102,627.82,624.81,0.3200973]
[1740946959000,0.31863877,627.67,624.81,0.3200973]
[1740946959200,0.29385102,627.66,624.81,0.3200973]
[1740946959405,0.31871494,627.52,624.81,0.9760973]
[1740946959600,0.29385102,627.51,624.81,0.9760973]
[1740946959803,0.31878606,627.38,624.82,0.29223992]
[1740946960005,0.29385102,627.37,624.83,0.32008706]
[1740946960201,0.31885213,627.25,624.84,0.29223992]
[1740946960401,0.29385102,627.24,624.85,0.32007681]
[1740946960600,0.31891314,627.13,624.86,0.29223992]
[1740946960805,0.29385102,627.12,624.87,0.32006657]
[1740946961007,0.29385102,627.11,624.87,0.32006657]
[1740946961208,0.29385102,627.1,624.87,0.32006657]
[1740946961405,0.29385102,627.09,624.87,0.32006657]
[1740946961603,0.29385102,627.08,624.87,0.32006657]
[1740946961803,0.31899452,626.97,624.87,0.32006657]
[1740946962108,0.29385102,626.96,624.87,0.32006657]
[1740946962406,0.3190505,626.86,624.88,1.274]
[1740946962707,0.29385102,626.85,624.89,0.32005632]
[1740946962908,0.31906577,626.83,624.89,0.32005632]
[1740946963207,0.29385102,626.82,624.89,0.32005632]
[1740946963401,0.31908104,626.8,624.9,0.617]
[1740946963605,0.29385102,626.79,624.91,0.32004608]
[1740946963805,1.4380471,627.95,624.91,0.32004608]
[1740946963806,0.31909631,626.77,624.91,0.32004608]
[1740946964106,0.29385102,626.76,624.91,0.32004608]
[1740946964406,0.31911159,626.74,624.91,0.32004608]
[1740946964608,0.29385102,626.73,624.91,0.32004608]
[1740946964907,0.31912686,626.71,624.91,0.32004608]
[1740946965101,0.29385102,626.7,624.91,0.32004608]
[1740946965303,0.31914214,626.68,624.91,0.32004608]
[1740946965507,0.29385102,626.67,624.91,0.32004608]
[1740946965807,0.29385102,626.66,624.91,0.32004608]
[1740946966001,0.31916251,626.64,624.91,0.32004608]
[1740946966205,0.29385102,626.63,624.91,0.32004608]
[1740946966402,0.31917779,626.61,624.91,0.32004608]
[1740946966610,0.29385102,626.6,624.91,0.32004608]
[1740946966908,0.31919307,626.58,624.91,0.32004608]
[1740946967107,0.29385102,626.57,624.91,0.32004608]
[1740946967302,0.31920836,626.55,624.91,0.32004608]
[1740946967501,0.29385102,626.54,624.91,0.32004608]
[1740946967701,0.31922364,626.52,624.91,0.32004608]
[1740946967900,0.29385102,626.51,624.91,0.32004608]
[1740946968102,0.31923893,626.49,624.91,1.19704608]
[1740946968402,0.29385102,626.48,624.91,1.19704608]
[1740946968601,0.31925422,626.46,624.91,1.19704608]
[1740946968803,0.29385102,626.45,624.91,1.19704608]
[1740946969005,0.31926441,626.44,624.91,1.19704608]
[1740946969206,0.29385102,626.43,624.91,1.19704608]
[1740946969407,0.3192746,626.42,624.91,1.19704608]
[1740946969609,0.29385102,626.41,624.91,1.19704608]
[1740946969807,0.3192848,626.4,624.91,1.19704608]
[1740946970002,0.29385102,626.39,624.91,1.19704608]
[1740946970202,0.31929499,626.38,624.91,1.19704608]
[1740946970408,0.29385102,626.37,624.91,1.19704608]
[1740946970804,0.31930519,626.36,624.91,1.19704608]
[1740946971108,1.98849002,626.36,624.91,1.19704608]
[1740946971308,0.29381678,626.35,624.91,1.19704608]
[1740946974006,1.66920485,626.34,624.91,1.19704608]
[1740946974210,0.29381678,626.33,624.91,1.19704608]
[1740946974605,0.29382135,626.32,624.91,1.19704608]
[1740946974808,0.29382135,626.31,624.91,1.19704608]
[1740946975105,0.29382135,626.3,624.91,1.19704608]
[1740946975308,0.29382135,626.33,624.91,1.19704608]
[1740946976814,0.31932558,626.32,624.91,1.19704608]
[1740946977015,0.29382135,626.31,624.91,1.19704608]
[1740946977214,0.61315203,626.31,624.91,1.19704608]
[1740946977416,0.29382135,626.3,624.91,1.19704608]
[1740946978618,0.29382135,626.3,624.91,1.85404608]
[1740946979716,0.29382135,626.3,624.91,2.47104608]
[1740946979921,1.66929826,626.29,624.94,1.19666743]
[1740946980119,0.29382135,626.28,624.95,0.3200256]
[1740946980319,0.29382135,626.28,624.96,0.29218675]
[1740946980521,0.29382135,626.28,624.97,0.32001536]
[1740946981918,0.61316732,626.28,624.97,0.32001536]
[1740946982122,0.29382135,626.27,624.97,0.32001536]
[1740946982622,0.29382135,626.27,625.15,1.19666743]
[1740946983021,0.61317242,626.27,625.15,1.19666743]
[1740946983214,0.29382135,626.26,625.15,1.19666743]
[1740946984920,0.31935107,626.27,625.15,1.19666743]
[1740946985420,0.31935107,626.27,625.08,1.19666743]
[1740946988527,0.31935107,626.27,624.97,0.32001536]
[1740946989726,0.29378817,626.26,624.97,0.32001536]
[1740946990420,0.31935107,626.27,624.97,0.32001536]
[1740946990627,0.31935107,626.27,624.98,1.125]
[1740946990827,0.31935107,626.27,624.99,0.32000512]
[1740946993334,0.29379126,626.26,624.99,0.32000512]
[1740946995239,0.29379126,626.26,625.0,1.262]
[1740946995938,0.31935107,626.27,625.01,0.657]
[1740946996139,0.29379342,626.26,625.01,0.657]
[1740946997941,0.29379342,626.26,625.02,0.617]
[1740946999447,0.29381211,626.25,625.02,0.617]
[1740946999642,0.29381211,626.26,625.02,0.617]
[1740947004643,0.29383029,626.25,625.02,0.617]
[1740947005646,0.29383029,626.25,625.02,1.791]
[1740947006248,0.918,626.24,625.02,1.791]
[1740947006443,0.29383029,626.23,625.02,1.791]
[1740947006844,0.31937657,626.22,625.02,1.791]
[1740947007047,0.29383029,626.21,625.02,1.791]
[1740947007246,0.61321196,626.21,625.02,1.791]
[1740947007446,0.29383029,626.2,625.02,1.791]
[1740947007847,0.29383029,626.2,625.02,2.763]
[1740947011152,0.29380826,626.19,625.02,2.763]
[1740947011351,0.29380826,626.18,625.02,2.763]
[1740947011652,0.29380826,626.17,625.02,2.763]
[1740947011852,0.29380826,626.2,625.02,2.763]
[1740947012154,0.29380826,626.19,625.02,2.763]
[1740947012353,0.29380826,626.2,625.02,2.763]
[1740947012554,0.29380826,626.19,625.02,2.763]
[1740947012746,0.29380826,626.2,625.02,2.763]
[1740947012946,0.29380826,626.19,625.02,2.763]
[1740947013148,0.29380826,626.18,625.02,2.763]
[1740947013353,0.29380826,626.17,625.02,2.763]
[1740947013548,0.29380826,626.16,625.02,2.763]
[1740947013753,0.29380826,626.2,625.02,2.763]
[1740947013953,0.29380826,626.19,625.02,2.763]
[1740947014147,0.29380826,626.2,625.02,2.763]
[1740947014348,0.31938167,626.21,625.02,2.763]
[1740947014550,0.29383633,626.2,625.02,2.763]
[1740947014752,0.31939187,626.19,625.02,2.763]
[1740947014956,0.29383633,626.18,625.02,2.763]
[1740947015155,0.31940207,626.17,625.02,2.763]
[1740947015350,0.29383633,626.16,625.02,2.763]
[1740947015754,0.31941228,626.15,625.02,2.763]
[1740947015954,0.29383633,626.14,625.02,2.763]
[1740947016154,0.31942248,626.13,625.02,2.763]
[1740947016350,0.29383633,626.12,625.02,2.763]
[1740947016553,0.31943268,626.11,625.02,2.763]
[1740947016749,0.29383633,626.1,625.02,2.763]
[1740947016950,0.31944289,626.09,625.02,2.763]
[1740947017151,0.29383633,626.08,625.02,2.763]
[1740947017355,0.31945309,626.07,625.02,2.763]
[1740947017657,0.29383633,626.06,625.02,2.763]
[1740947017955,0.3194633,626.05,625.02,2.763]
[1740947018157,0.29383633,626.04,625.02,2.763]
[1740947018351,0.3194735,626.03,625.02,2.763]
[1740947018554,0.29383633,626.02,625.02,2.763]
[1740947018849,0.31948371,626.01,625.02,2.763]
[1740947019056,0.29383633,626.0,625.02,2.763]
[1740947019255,0.31949392,625.99,625.02,2.763]
[1740947019452,0.29402323,625.98,625.02,2.763]
[1740947019656,0.31950412,625.97,625.02,2.763]
[1740947019857,0.29402323,625.96,625.02,2.763]
[1740947020153,0.31951433,625.95,625.02,2.763]
[1740947020459,0.29402323,625.94,625.02,2.763]
[1740947020659,0.31952454,625.93,625.02,2.763]
[1740947020858,0.29402323,625.92,625.02,2.763]
[1740947021059,0.31953475,625.91,625.02,2.763]
[1740947021260,0.29402323,625.9,625.02,2.763]
[1740947021954,0.31954496,625.89,625.02,2.763]
[1740947022158,0.29402323,625.88,625.02,2.763]
[1740947022360,0.31955517,625.87,625.02,2.763]
[1740947022660,0.29402323,625.86,625.02,2.763]
[1740947022854,0.31956539,625.85,625.02,2.763]
[1740947023054,0.29402323,625.84,625.02,2.763]
[1740947023360,0.61359372,625.84,625.02,2.763]
[1740947023559,0.29402323,625.83,625.02,2.763]
[1740947024461,0.29402323,625.83,625.02,3.42]
[1740947027564,0.29402323,625.83,625.02,4.466]
[1740947028964,0.61359883,625.83,625.02,4.466]
[1740947029170,0.29402323,625.82,625.02,4.466]
[1740947030067,0.31958581,625.81,625.02,4.466]
[1740947030269,0.29402323,625.8,625.02,4.466]
[1740947030458,0.31959603,625.79,625.02,4.466]
[1740947030661,0.29402323,625.78,625.02,4.466]
[1740947030963,0.31960624,625.77,625.02,4.466]
[1740947031165,0.29402323,625.76,625.02,4.466]
[1740947031365,0.31961646,625.75,625.02,4.466]
[1740947031562,0.29402323,625.74,625.02,4.466]
[1740947032667,0.29404959,625.73,625.02,4.466]
[1740947032863,0.29404959,625.72,625.02,4.466]
[1740947033067,0.29404959,625.71,625.02,4.466]
[1740947033267,0.29404959,625.7,625.02,4.466]
[1740947033468,0.29404959,625.74,625.02,4.466]
[1740947033668,0.29404959,625.73,625.02,4.466]
[1740947033869,0.29404959,625.74,625.02,4.466]
[1740947034069,0.31961646,625.75,625.02,4.466]
[1740947034070,0.29404959,625.73,625.02,4.466]
[1740947034264,0.29404959,625.74,625.02,4.466]
[1740947034768,1.4380471,626.7,625.02,4.466]
[1740947034964,0.29387469,626.69,625.02,4.466]
[1740947035169,1.4380471,626.64,625.02,4.466]
[1740947035366,0.29387469,626.63,625.02,4.466]
[1740947035566,0.29387469,626.62,625.02,4.466]
[1740947035765,0.29387469,626.61,625.02,4.466]
[1740947035971,0.29389417,626.6,625.02,4.466]
[1740947036169,0.31919307,626.58,625.02,4.466]
[1740947036471,0.29389417,626.57,625.02,4.466]
[1740947036672,0.31920836,626.55,625.02,4.466]
[1740947037073,0.29389417,626.54,625.02,4.466]
[1740947037372,0.29389417,626.53,625.02,4.466]
[1740947037670,0.29389417,626.52,625.02,4.466]
[1740947037865,0.31920836,626.55,625.02,4.466]
[1740947037866,0.29389417,626.51,625.02,4.466]
[1740947038071,0.29389417,626.54,625.02,4.466]
[1740947038267,0.29389417,626.53,625.02,4.466]
[1740947038472,0.29389417,626.52,625.02,4.466]
[1740947038771,0.29389417,626.51,625.02,4.466]
[1740947038969,0.31920836,626.55,625.02,4.466]
[1740947039473,0.29386257,626.54,625.02,4.466]
[1740947039867,0.31922364,626.52,625.02,4.466]
[1740947040070,0.29386257,626.51,625.02,4.466]
[1740947040572,0.29386257,626.5,625.02,4.466]
[1740947040772,0.31922364,626.52,625.02,4.466]
[1740947040773,0.29386257,626.49,625.02,4.466]
[1740947040974,0.29386257,626.48,625.02,4.466]
[1740947041268,0.29386257,626.47,625.02,4.466]
[1740947041468,0.31922364,626.52,625.02,4.466]
[1740947041469,0.29397236,626.46,625.02,4.466]
[1740947041672,0.29397236,626.45,625.02,4.466]
[1740947041874,0.29397236,626.44,625.02,4.466]
[1740947042073,0.29397236,626.43,625.02,4.466]
[1740947042275,0.29397236,626.42,625.02,4.466]
[1740947042474,0.29397236,626.41,625.02,4.466]
[1740947042675,0.29397236,626.4,625.02,4.466]
[1740947042976,0.29397236,626.39,625.02,4.466]
[1740947043274,0.29397236,626.38,625.02,4.466]
[1740947043476,0.29397236,626.37,625.02,4.466]
[1740947043675,0.31922364,626.52,625.02,4.466]
[1740947043976,0.29402866,626.51,625.02,4.466]
[1740947044270,0.29402866,626.5,625.02,4.466]
[1740947044475,0.29402866,626.49,625.02,4.466]
[1740947044674,0.29402866,626.48,625.02,4.466]
[1740947044875,0.31925422,626.46,625.02,4.466]
[1740947045074,0.29402866,626.45,625.02,4.466]
[1740947045274,0.29402866,626.44,625.02,4.466]
[1740947045470,0.3192746,626.42,625.02,4.466]
[1740947045671,0.29402866,626.41,625.02,4.466]
[1740947045871,0.29402866,626.4,625.02,4.466]
[1740947046176,0.31929499,626.38,625.02,4.466]
[1740947046375,0.29402866,626.37,625.02,4.466]
[1740947046576,0.29402866,626.36,625.02,4.466]
[1740947046876,0.29402866,626.35,625.02,4.466]
[1740947047077,0.31932048,626.33,625.02,4.466]
[1740947047280,0.29416176,626.32,625.02,4.466]
[1740947047579,0.31933578,626.3,625.02,4.466]
[1740947047780,0.29416176,626.29,625.02,4.466]
[1740947048078,0.31935107,626.27,625.02,4.466]
[1740947048278,0.29416176,626.26,625.02,4.466]
[1740947048478,0.31936637,626.24,625.02,4.466]
[1740947048678,0.29416176,626.23,625.02,4.466]
[1740947048880,0.31938167,626.21,625.02,4.466]
[1740947049078,0.29416176,626.2,625.02,4.466]
[1740947049280,0.31939697,626.18,625.02,4.466]
[1740947049482,0.29416176,626.17,625.02,2.246]
[1740947049681,0.31941228,626.15,625.02,1.629]
[1740947049881,0.29416176,626.14,625.02,1.629]
[1740947050083,0.31941228,626.15,625.02,1.629]
[1740947050084,0.31942758,626.12,625.02,1.629]
[1740947050279,0.29411555,626.11,625.02,1.629]
[1740947050884,0.31944289,626.09,625.02,1.629]
[1740947051085,0.29411555,626.08,625.02,1.629]
[1740947051289,0.29411555,626.08,625.02,0.972]
[1740947051485,0.31945819,626.06,624.13,1.6701595]
[1740947051687,0.29411555,626.05,624.15,0.32043579]
[1740947051886,0.3194735,626.03,624.16,0.29245858]
[1740947052086,0.29411555,626.02,624.18,0.32042039]
[1740947052286,0.31948881,626.0,624.19,0.29245858]
[1740947052486,0.29411555,625.99,624.21,0.32040499]
[1740947052783,0.31949902,625.98,624.22,0.91045858]
[1740947052987,0.29411555,625.97,624.24,0.32038959]
[1740947053187,0.31950923,625.96,624.25,0.29245858]
[1740947053388,0.29411555,625.95,624.26,0.32037932]
[1740947053688,0.31952454,625.93,624.26,0.32037932]
[1740947053888,0.29411555,625.92,624.26,0.32037932]
[1740947054083,0.31953986,625.9,624.26,0.32037932]
[1740947054288,0.29411555,625.89,624.26,0.32037932]
[1740947054487,0.31955517,625.87,624.27,0.662]
[1740947054783,0.29411555,625.86,624.28,0.32036906]
[1740947054990,0.31957049,625.84,624.28,0.32036906]
[1740947055190,0.29414054,625.83,624.28,0.32036906]
[1740947055385,0.31958581,625.81,624.28,0.32036906]
[1740947055589,0.29414054,625.8,624.28,0.32036906]
[1740947055889,0.31960113,625.78,624.28,0.32036906]
[1740947056192,0.29414054,625.77,624.28,0.32036906]
[1740947056892,0.31961135,625.76,624.28,0.32036906]
[1740947057084,0.29414054,625.75,624.28,0.32036906]
[1740947057287,0.31962156,625.74,624.28,0.32036906]
[1740947057484,0.29414054,625.73,624.28,0.32036906]
[1740947057684,0.31963178,625.72,624.28,0.32036906]
[1740947057985,0.29414054,625.71,624.28,0.32036906]
[1740947058189,0.319642,625.7,624.28,0.32036906]
[1740947058389,0.29414054,625.69,624.28,0.32036906]
[1740947058587,0.31965221,625.68,624.28,0.32036906]
[1740947058793,0.29414054,625.67,624.28,0.32036906]
[1740947059091,0.31966243,625.66,624.28,0.32036906]
[1740947059292,0.29414054,625.65,624.28,0.32036906]
[1740947059491,0.31967265,625.64,624.28,0.32036906]
[1740947059690,0.29414054,625.63,624.28,0.32036906]
[1740947059990,0.31968287,625.62,624.28,0.32036906]
[1740947060186,0.29414054,625.61,624.28,0.32036906]
[1740947060383,0.31969309,625.6,624.28,0.32036906]
[1740947060590,0.29414054,625.59,624.28,0.32036906]
[1740947061595,0.31970331,625.58,624.28,0.32036906]
[1740947061788,0.29414054,625.57,624.28,0.32036906]
[1740947061993,0.31971353,625.56,624.28,0.32036906]
[1740947062189,0.29414054,625.55,624.28,0.32036906]
[1740947062391,0.31972375,625.54,624.28,0.32036906]
[1740947062588,0.29414054,625.53,624.28,0.32036906]
[1740947062794,0.31973398,625.52,624.28,0.32036906]
[1740947062993,0.29414054,625.51,624.28,0.32036906]
[1740947063196,0.61387963,625.51,624.28,0.32036906]
[1740947063489,0.29414054,625.5,624.28,0.32036906]
[1740947064188,0.31973909,625.51,624.28,0.32036906]
[1740947064392,0.29415508,625.5,624.28,0.32036906]
[1740947068196,0.31973909,625.51,624.28,0.32036906]
[1740947068389,0.29413269,625.5,624.28,0.32036906]
[1740947070496,0.31973909,625.51,624.28,0.32036906]
[1740947070997,0.29411001,625.5,624.28,0.32036906]
[1740947071496,0.29411001,625.5,624.28,1.43736906]
[1740947071697,0.31973909,625.51,624.28,1.43736906]
[1740947072197,0.29413756,625.5,624.28,1.43736906]
[1740947072796,0.29413756,625.5,624.28,2.09936906]
[1740947073889,0.29413756,625.5,624.28,2.88036906]
[1740947076998,0.61388176,625.5,624.28,2.88036906]
[1740947077199,0.29413756,625.49,624.28,2.88036906]
[1740947077600,0.31975442,625.48,624.28,2.88036906]
[1740947077800,0.29413756,625.47,624.28,2.88036906]
[1740947078001,0.31976465,625.46,624.28,2.88036906]
[1740947078201,0.29413756,625.45,624.28,2.88036906]
[1740947078401,0.31977487,625.44,624.28,2.88036906]
[1740947078597,0.29413756,625.43,624.28,2.88036906]
[1740947078805,0.3197851,625.42,624.28,2.88036906]
[1740947079003,0.29413756,625.41,624.28,2.88036906]
[1740947080005,0.61392777,625.41,624.28,2.88036906]
[1740947080199,0.29413756,625.4,624.28,2.88036906]
[1740947081705,0.29409329,625.39,624.28,2.88036906]
[1740947081900,0.29409329,625.4,624.28,3.97436906]
[1740947082106,0.29409329,625.39,624.28,3.97436906]
[1740947082299,0.29409329,625.38,624.28,3.97436906]
[1740947082501,0.61389884,625.38,624.28,3.97436906]
[1740947082701,0.29409329,625.37,624.28,3.97436906]
[1740947084106,0.29409329,625.37,624.28,4.59136906]
[1740947085007,0.31980555,625.38,624.28,4.59136906]
[1740947085308,0.79,625.36,624.28,4.59136906]
[1740947085510,0.29414374,625.35,624.28,4.59136906]
[1740947086609,0.79,625.36,624.28,4.59136906]
[1740947086809,0.29416145,625.35,624.28,4.59136906]
[1740947088313,0.79,625.36,624.28,4.59136906]
[1740947088515,0.29421249,625.35,624.28,4.59136906]
[1740947089516,0.79,625.36,624.28,4.59136906]
[1740947092519,0.29415279,625.35,624.28,4.59136906]
[1740947095121,0.79,625.36,624.28,4.59136906]
[1740947095318,0.29416114,625.35,624.28,4.59136906]
[1740947097023,0.29415449,625.34,624.28,4.59136906]
[1740947097217,0.29415449,625.35,624.28,4.59136906]
[1740947097423,0.29415449,625.34,624.28,4.59136906]
[1740947097618,0.29415449,625.33,624.28,4.59136906]
[1740947097823,0.29415449,625.32,624.28,4.59136906]
[1740947098123,0.29415449,625.31,624.28,4.59136906]
[1740947098324,0.79,625.36,624.28,4.59136906]
[1740947100726,0.2941714,625.35,624.28,4.59136906]
[1740947101627,0.29418236,625.34,624.28,4.59136906]
[1740947101927,0.29418236,625.33,624.28,4.59136906]
[1740947102124,0.29418236,625.35,624.28,4.59136906]
[1740947102329,0.79,625.36,624.28,4.59136906]
[1740947102528,0.29418172,625.35,624.28,4.59136906]
[1740947111641,0.29419049,625.34,624.28,4.59136906]
[1740947111840,0.29419049,625.33,624.28,4.59136906]
[1740947112137,0.29419049,625.32,624.28,4.59136906]
[1740947112337,0.29419049,625.31,624.28,4.59136906]
[1740947112537,0.29419049,625.35,624.28,4.59136906]
[1740947112740,0.29419049,625.34,624.28,4.59136906]
[1740947112940,0.29419049,625.33,624.28,4.59136906]
[1740947113141,0.29419049,625.32,624.28,4.59136906]
[1740947113340,0.29419049,625.35,624.28,4.59136906]
[1740947113538,0.29419049,625.34,624.28,4.59136906]
[1740947113741,0.29419049,625.37,624.28,4.59136906]
[1740947113940,0.29419049,625.36,624.28,4.59136906]
[1740947114141,0.29419049,625.37,624.28,4.59136906]
[1740947114339,0.29419049,625.36,624.28,4.59136906]
[1740947114543,0.29419049,625.37,624.28,4.59136906]
[1740947114744,0.29419049,625.36,624.28,4.59136906]
[1740947115043,0.29419049,625.35,624.28,4.59136906]
[1740947115239,0.29419049,625.37,624.28,4.59136906]
[1740947115443,0.29419049,625.36,624.28,4.59136906]